[Event "Early-Titled-Tuesday-Blitz-April-23-2024"]
[Site "Chess.com"]
[Date "2024.04.23"]
[Round "8"]
[White "FXDon77"]
[Black "TenisMaster"]
[Result "1-0"]
[WhiteElo "2860"]
[BlackElo "2964"]
[TimeControl "180+1"]
[EndTime "9:32:29 PDT"]
[Termination "FXDon77 won on time"]

1. e4 {[%clk 0:02:42]} 1... e5 {[%clk 0:02:59.3]} 2. Nf3 {[%clk 0:02:41.8]} 2...
Nc6 {[%clk 0:02:59.9]} 3. Bc4 {[%clk 0:02:41.8]} 3... Bc5 {[%clk 0:02:59.2]} 4.
O-O {[%clk 0:02:41.4]} 4... Nf6 {[%clk 0:02:59.8]} 5. d3 {[%clk 0:02:42.1]} 5...
d6 {[%clk 0:02:55.6]} 6. c3 {[%clk 0:02:42.1]} 6... a6 {[%clk 0:02:55.5]} 7. a4
{[%clk 0:02:41.4]} 7... Ba7 {[%clk 0:02:47.6]} 8. Nbd2 {[%clk 0:02:40.9]} 8...
O-O {[%clk 0:02:46.9]} 9. h3 {[%clk 0:02:40.4]} 9... h6 {[%clk 0:02:46.1]} 10.
Re1 {[%clk 0:02:40.7]} 10... Re8 {[%clk 0:02:46.4]} 11. b4 {[%clk 0:02:39.5]}
11... Be6 {[%clk 0:02:46.3]} 12. Bxe6 {[%clk 0:02:39.9]} 12... Rxe6 {[%clk
0:02:46.3]} 13. Qc2 {[%clk 0:02:40]} 13... Qd7 {[%clk 0:02:45.6]} 14. Rb1 {[%clk
0:02:39.4]} 14... Ne7 {[%clk 0:02:42.2]} 15. Nf1 {[%clk 0:02:36.3]} 15... Ng6
{[%clk 0:02:41.5]} 16. Ng3 {[%clk 0:02:24.7]} 16... Rd8 {[%clk 0:02:32.7]} 17.
c4 {[%clk 0:02:22.8]} 17... Ree8 {[%clk 0:02:06.8]} 18. a5 {[%clk 0:02:22.4]}
18... Nh7 {[%clk 0:01:30.2]} 19. Nf5 {[%clk 0:02:13.7]} 19... Ne7 {[%clk
0:01:28.1]} 20. N3h4 {[%clk 0:02:11.3]} 20... Nxf5 {[%clk 0:01:24]} 21. Nxf5
{[%clk 0:02:11.5]} 21... Re6 {[%clk 0:01:22.5]} 22. Qe2 {[%clk 0:02:09]} 22...
Rde8 {[%clk 0:01:14.1]} 23. Qg4 {[%clk 0:01:47.9]} 23... g6 {[%clk 0:01:12.8]}
24. Bxh6 {[%clk 0:01:40.3]} 24... Nf6 {[%clk 0:01:03.7]} 25. Qh4 {[%clk
0:01:27]} 25... Nh5 {[%clk 0:00:50.8]} 26. Ng3 {[%clk 0:01:14.7]} 26... Nxg3
{[%clk 0:00:35.9]} 27. Qxg3 {[%clk 0:01:15.6]} 27... c6 {[%clk 0:00:34.9]} 28.
h4 {[%clk 0:01:09.3]} 28... Bd4 {[%clk 0:00:34.8]} 29. Be3 {[%clk 0:01:01.4]}
29... Bxe3 {[%clk 0:00:32.6]} 30. fxe3 {[%clk 0:00:59.7]} 30... d5 {[%clk
0:00:32.8]} 31. exd5 {[%clk 0:00:55]} 31... cxd5 {[%clk 0:00:33.7]} 32. c5
{[%clk 0:00:53.1]} 32... f5 {[%clk 0:00:28.4]} 33. Rf1 {[%clk 0:00:46.3]} 33...
Kh7 {[%clk 0:00:24]} 34. h5 {[%clk 0:00:44.4]} 34... Rf8 {[%clk 0:00:14.1]} 35.
Rf2 {[%clk 0:00:36.3]} 35... d4 {[%clk 0:00:13.5]} 36. Rbf1 {[%clk 0:00:23.7]}
36... dxe3 {[%clk 0:00:11.8]} 37. Qxe3 {[%clk 0:00:23.5]} 37... f4 {[%clk
0:00:10.9]} 38. Qe4 {[%clk 0:00:20.3]} 38... Kg7 {[%clk 0:00:08.3]} 39. hxg6
{[%clk 0:00:16.9]} 39... Rd8 {[%clk 0:00:08.3]} 40. Qf5 {[%clk 0:00:16.1]} 40...
Qe7 {[%clk 0:00:05.7]} 41. Re1 {[%clk 0:00:13.9]} 41... Rf8 {[%clk 0:00:02.3]}
42. Qh5 {[%clk 0:00:12.2]} 42... Qf6 {[%clk 0:00:02.6]} 43. Qg4 {[%clk
0:00:09.1]} 43... Qxg6 {[%clk 0:00:01.5]} 44. Qxg6+ {[%clk 0:00:09]} 44... Kxg6
{[%clk 0:00:02.4]} 45. Rf3 {[%clk 0:00:07.9]} 1-0

[Event "Early-Titled-Tuesday-Blitz-April-23-2024"]
[Site "Chess.com"]
[Date "2024.04.23"]
[Round "8"]
[White "Antosha_Chekhonte"]
[Black "Lupul_Cenusiu"]
[Result "1-0"]
[WhiteElo "2561"]
[BlackElo "2658"]
[TimeControl "180+1"]
[EndTime "9:32:29 PDT"]
[Termination "Antosha_Chekhonte won on time"]

1. e4 {[%clk 0:03:00.9]} 1... c6 {[%clk 0:02:57.3]} 2. d4 {[%clk 0:03:00.7]}
2... d5 {[%clk 0:02:52.8]} 3. exd5 {[%clk 0:02:57.9]} 3... cxd5 {[%clk
0:02:53.7]} 4. Bd3 {[%clk 0:02:58.3]} 4... Nc6 {[%clk 0:02:54.2]} 5. c3 {[%clk
0:02:58.6]} 5... Nf6 {[%clk 0:02:54.9]} 6. Bf4 {[%clk 0:02:58.8]} 6... Bg4
{[%clk 0:02:55.4]} 7. Qb3 {[%clk 0:02:58.8]} 7... Qd7 {[%clk 0:02:56]} 8. Nd2
{[%clk 0:02:58.4]} 8... e6 {[%clk 0:02:56.6]} 9. Ngf3 {[%clk 0:02:58.7]} 9...
Bd6 {[%clk 0:02:57.1]} 10. Bxd6 {[%clk 0:02:57]} 10... Qxd6 {[%clk 0:02:58]} 11.
O-O {[%clk 0:02:57.3]} 11... O-O {[%clk 0:02:58.6]} 12. Rfe1 {[%clk 0:02:57.7]}
12... Ne7 {[%clk 0:02:59.1]} 13. Ne5 {[%clk 0:02:55.3]} 13... Bf5 {[%clk
0:02:59.5]} 14. Bf1 {[%clk 0:02:34]} 14... h6 {[%clk 0:02:51]} 15. a4 {[%clk
0:02:33.6]} 15... a5 {[%clk 0:02:20.3]} 16. Qa3 {[%clk 0:02:33.3]} 16... Qc7
{[%clk 0:02:12.5]} 17. h3 {[%clk 0:02:25.8]} 17... Ne4 {[%clk 0:02:01.9]} 18.
Nxe4 {[%clk 0:02:00.5]} 18... Bxe4 {[%clk 0:02:02.8]} 19. Bb5 {[%clk 0:01:53.9]}
19... Nc8 {[%clk 0:01:30.7]} 20. Qc5 {[%clk 0:01:27.2]} 20... Qxc5 {[%clk
0:01:18.1]} 21. dxc5 {[%clk 0:01:27.3]} 21... Na7 {[%clk 0:00:45.6]} 22. f3
{[%clk 0:01:23.1]} 22... Bf5 {[%clk 0:00:44.9]} 23. g4 {[%clk 0:01:21.9]} 23...
Bh7 {[%clk 0:00:44.8]} 24. b4 {[%clk 0:01:11]} 24... Rfc8 {[%clk 0:00:42.9]} 25.
Nd7 {[%clk 0:01:07]} 25... Rc7 {[%clk 0:00:22.8]} 26. Nb6 {[%clk 0:01:03.6]}
26... Rd8 {[%clk 0:00:23.3]} 27. Red1 {[%clk 0:00:48.2]} 27... Bc2 {[%clk
0:00:19.4]} 28. Rd2 {[%clk 0:00:46.8]} 28... Bb3 {[%clk 0:00:19.1]} 29. Ra3
{[%clk 0:00:43.8]} 29... Nxb5 {[%clk 0:00:08.6]} 30. axb5 {[%clk 0:00:43.4]}
30... a4 {[%clk 0:00:09.2]} 31. c4 {[%clk 0:00:28.5]} 31... d4 {[%clk
0:00:08.8]} 32. Kf2 {[%clk 0:00:23.3]} 32... e5 {[%clk 0:00:09.1]} 33. Rb2
{[%clk 0:00:19.1]} 33... d3 {[%clk 0:00:07.7]} 34. Ke3 {[%clk 0:00:19.4]} 34...
g6 {[%clk 0:00:06.9]} 35. Nxa4 {[%clk 0:00:18.2]} 35... Bxc4 {[%clk 0:00:06.6]}
36. Nc3 {[%clk 0:00:17.1]} 36... f5 {[%clk 0:00:06.2]} 37. b6 {[%clk 0:00:14]}
37... Re7 {[%clk 0:00:05]} 38. Ra7 {[%clk 0:00:11.3]} 38... Kf7 {[%clk
0:00:03.1]} 39. b5 {[%clk 0:00:09.4]} 39... e4 {[%clk 0:00:03.1]} 40. f4 {[%clk
0:00:09.2]} 40... fxg4 {[%clk 0:00:02.8]} 41. hxg4 {[%clk 0:00:09.5]} 41... h5
{[%clk 0:00:03.2]} 42. gxh5 {[%clk 0:00:09.8]} 42... gxh5 {[%clk 0:00:04.1]} 43.
c6 {[%clk 0:00:10.3]} 43... Rb8 {[%clk 0:00:01.5]} 44. c7 {[%clk 0:00:10.1]} 1-0

[Event "Early-Titled-Tuesday-Blitz-April-23-2024"]
[Site "Chess.com"]
[Date "2024.04.23"]
[Round "8"]
[White "jbking07"]
[Black "osielchesslover2011"]
[Result "0-1"]
[WhiteElo "2459"]
[BlackElo "2229"]
[TimeControl "180+1"]
[EndTime "9:32:32 PDT"]
[Termination "osielchesslover2011 won on time"]

1. e4 {[%clk 0:03:00.9]} 1... c5 {[%clk 0:02:59.7]} 2. Nf3 {[%clk 0:03:01.2]}
2... d6 {[%clk 0:03:00.3]} 3. d4 {[%clk 0:03:01.7]} 3... cxd4 {[%clk 0:03:01.2]}
4. Nxd4 {[%clk 0:03:02.6]} 4... Nf6 {[%clk 0:03:01.5]} 5. Nc3 {[%clk 0:03:03.2]}
5... a6 {[%clk 0:03:02.2]} 6. Be2 {[%clk 0:03:03.4]} 6... e6 {[%clk 0:03:02.9]}
7. f4 {[%clk 0:03:02.4]} 7... Nc6 {[%clk 0:03:02.1]} 8. Be3 {[%clk 0:03:02.2]}
8... Qc7 {[%clk 0:03:02.6]} 9. Qd2 {[%clk 0:02:59.5]} 9... Be7 {[%clk
0:03:02.2]} 10. Nxc6 {[%clk 0:02:53]} 10... bxc6 {[%clk 0:03:00.4]} 11. g4
{[%clk 0:02:52.6]} 11... h6 {[%clk 0:02:50.4]} 12. h4 {[%clk 0:02:52]} 12... Nd7
{[%clk 0:02:46.6]} 13. O-O-O {[%clk 0:02:46.5]} 13... Rb8 {[%clk 0:02:39.5]} 14.
g5 {[%clk 0:02:29.1]} 14... Qb7 {[%clk 0:02:37.8]} 15. Na4 {[%clk 0:02:28.5]}
15... d5 {[%clk 0:02:25]} 16. f5 {[%clk 0:01:59.8]} 16... Bb4 {[%clk 0:00:24.8]}
17. c3 {[%clk 0:01:38.3]} 17... Ba3 {[%clk 0:00:20.5]} 18. g6 {[%clk 0:01:32.7]}
18... fxg6 {[%clk 0:00:16.7]} 19. fxe6 {[%clk 0:01:32.3]} 19... Ne5 {[%clk
0:00:16.9]} 20. exd5 {[%clk 0:01:21.2]} 20... cxd5 {[%clk 0:00:14.6]} 21. Bf4
{[%clk 0:01:15.1]} 21... Bd6 {[%clk 0:00:10.5]} 22. Qc2 {[%clk 0:00:57]} 22...
O-O {[%clk 0:00:08.2]} 23. Rhf1 {[%clk 0:00:54.8]} 23... Bxe6 {[%clk 0:00:07]}
24. Bxe5 {[%clk 0:00:37.1]} 24... Bxe5 {[%clk 0:00:07.9]} 25. Nc5 {[%clk
0:00:38]} 25... Qe7 {[%clk 0:00:06.8]} 26. Nxe6 {[%clk 0:00:30.6]} 26... Qxe6
{[%clk 0:00:07.7]} 27. Bd3 {[%clk 0:00:31.5]} 27... Bf4+ {[%clk 0:00:07.3]} 28.
Kb1 {[%clk 0:00:31.5]} 28... Qb6 {[%clk 0:00:06.3]} 29. Bxg6 {[%clk 0:00:29.2]}
29... Rf6 {[%clk 0:00:06.7]} 30. h5 {[%clk 0:00:23.1]} 30... Be5 {[%clk
0:00:04.6]} 31. Rxf6 {[%clk 0:00:20.2]} 31... Bxf6 {[%clk 0:00:05.5]} 32. Rxd5
{[%clk 0:00:19.6]} 32... Rc8 {[%clk 0:00:05.9]} 33. Rd1 {[%clk 0:00:18.8]} 33...
Rxc3 {[%clk 0:00:04.4]} 34. Qe2 {[%clk 0:00:11.6]} 34... Rc8 {[%clk 0:00:03.2]}
35. Ka1 {[%clk 0:00:09.1]} 35... Rb8 {[%clk 0:00:02.3]} 36. Rb1 {[%clk
0:00:07.4]} 36... Kh8 {[%clk 0:00:01.8]} 37. a3 {[%clk 0:00:06.1]} 37... Rc8
{[%clk 0:00:02]} 38. Ka2 {[%clk 0:00:06]} 38... Qc6 {[%clk 0:00:01.3]} 39. Qd3
{[%clk 0:00:04.3]} 39... Qb6 {[%clk 0:00:01.3]} 40. Qe2 {[%clk 0:00:02.7]} 40...
Rb8 {[%clk 0:00:02]} 41. Qd3 {[%clk 0:00:01.5]} 41... Qe6+ {[%clk 0:00:02.2]}
0-1

[Event "Early-Titled-Tuesday-Blitz-April-23-2024"]
[Site "Chess.com"]
[Date "2024.04.23"]
[Round "8"]
[White "Kirill_Klukin"]
[Black "ChristianArca"]
[Result "1-0"]
[WhiteElo "2844"]
[BlackElo "2647"]
[TimeControl "180+1"]
[EndTime "9:32:34 PDT"]
[Termination "Kirill_Klukin won by resignation"]

1. d4 {[%clk 0:03:00.9]} 1... d5 {[%clk 0:02:59.6]} 2. c4 {[%clk 0:03:00.8]}
2... c6 {[%clk 0:02:59.5]} 3. Nf3 {[%clk 0:03:01.3]} 3... Nf6 {[%clk 0:02:59.7]}
4. Nc3 {[%clk 0:03:01.9]} 4... a6 {[%clk 0:02:59.9]} 5. e3 {[%clk 0:03:02]} 5...
Bf5 {[%clk 0:02:59.7]} 6. Bd3 {[%clk 0:03:01.6]} 6... Bxd3 {[%clk 0:02:58.7]} 7.
Qxd3 {[%clk 0:03:02.5]} 7... e6 {[%clk 0:02:59.2]} 8. O-O {[%clk 0:03:03]} 8...
Nbd7 {[%clk 0:02:57.1]} 9. b3 {[%clk 0:03:03.7]} 9... Bb4 {[%clk 0:02:56.7]} 10.
Bb2 {[%clk 0:03:04.3]} 10... O-O {[%clk 0:02:56.5]} 11. Nd2 {[%clk 0:02:56.3]}
11... b5 {[%clk 0:02:27.7]} 12. e4 {[%clk 0:02:53.6]} 12... Rb8 {[%clk
0:02:28.1]} 13. e5 {[%clk 0:02:48.5]} 13... Ne8 {[%clk 0:02:21.9]} 14. a3 {[%clk
0:02:39.5]} 14... bxc4 {[%clk 0:02:17.3]} 15. bxc4 {[%clk 0:02:37.3]} 15... Ba5
{[%clk 0:02:17.2]} 16. Rab1 {[%clk 0:02:35.2]} 16... Nc7 {[%clk 0:02:14.9]} 17.
c5 {[%clk 0:02:21.8]} 17... f5 {[%clk 0:01:57.3]} 18. Na4 {[%clk 0:02:16.8]}
18... f4 {[%clk 0:01:53.1]} 19. Bc3 {[%clk 0:02:02.1]} 19... Nb5 {[%clk
0:01:47.9]} 20. Bb4 {[%clk 0:02:01.2]} 20... Bc7 {[%clk 0:01:46.1]} 21. Nc3
{[%clk 0:01:55.8]} 21... g5 {[%clk 0:00:48.9]} 22. a4 {[%clk 0:01:54.2]} 22...
Nxc3 {[%clk 0:00:46.7]} 23. Bxc3 {[%clk 0:01:55.1]} 23... Ra8 {[%clk 0:00:37.8]}
24. h3 {[%clk 0:01:53.9]} 24... Rf7 {[%clk 0:00:35.9]} 25. Rb7 {[%clk
0:01:52.2]} 25... Qc8 {[%clk 0:00:36.1]} 26. Rfb1 {[%clk 0:01:52.3]} 26... Bd8
{[%clk 0:00:34.8]} 27. Qe2 {[%clk 0:01:46]} 27... Nxe5 {[%clk 0:00:23.8]} 28.
Rxf7 {[%clk 0:01:23.7]} 28... Nxf7 {[%clk 0:00:24.7]} 29. Re1 {[%clk 0:01:24.1]}
29... Ra7 {[%clk 0:00:04.8]} 30. Qg4 {[%clk 0:01:12.7]} 30... Re7 {[%clk
0:00:03]} 31. Nf3 {[%clk 0:01:13.2]} 31... Re8 {[%clk 0:00:02.2]} 32. h4 {[%clk
0:01:13.6]} 32... h6 {[%clk 0:00:02.1]} 33. Bd2 {[%clk 0:01:01.9]} 33... Kf8
{[%clk 0:00:02.1]} 34. Qh5 {[%clk 0:00:56.1]} 34... Bf6 {[%clk 0:00:01.9]} 35.
Qg6 {[%clk 0:00:55.3]} 35... Ke7 {[%clk 0:00:01.7]} 36. hxg5 {[%clk 0:00:41.4]}
36... hxg5 {[%clk 0:00:02.6]} 37. Rb1 {[%clk 0:00:36.5]} 37... Rg8 {[%clk
0:00:02.2]} 38. Qh7 {[%clk 0:00:37]} 38... Rh8 {[%clk 0:00:02.1]} 39. Qd3 {[%clk
0:00:35.3]} 39... Qc7 {[%clk 0:00:01.9]} 40. Qxa6 {[%clk 0:00:33.9]} 40... Rb8
{[%clk 0:00:01.5]} 41. Rxb8 {[%clk 0:00:34]} 41... Qxb8 {[%clk 0:00:02.4]} 42.
Qb6 {[%clk 0:00:25.9]} 42... Qxb6 {[%clk 0:00:02.5]} 43. cxb6 {[%clk 0:00:26.8]}
43... Kd7 {[%clk 0:00:03.4]} 44. a5 {[%clk 0:00:25.7]} 44... g4 {[%clk 0:00:04]}
45. Bxf4 {[%clk 0:00:23]} 45... Kc8 {[%clk 0:00:02.8]} 46. a6 {[%clk 0:00:22.8]}
46... Nd8 {[%clk 0:00:03.4]} 47. b7+ {[%clk 0:00:22.3]} 47... Nxb7 {[%clk
0:00:03.4]} 48. axb7+ {[%clk 0:00:23.2]} 48... Kxb7 {[%clk 0:00:04.3]} 49. Ne5
{[%clk 0:00:24]} 1-0

[Event "Early-Titled-Tuesday-Blitz-April-23-2024"]
[Site "Chess.com"]
[Date "2024.04.23"]
[Round "8"]
[White "klercaku"]
[Black "McCarthyStone"]
[Result "0-1"]
[WhiteElo "2257"]
[BlackElo "2407"]
[TimeControl "180+1"]
[EndTime "9:32:34 PDT"]
[Termination "McCarthyStone won by resignation"]

1. e4 {[%clk 0:03:00.9]} 1... e5 {[%clk 0:02:58.9]} 2. Nf3 {[%clk 0:03:00]} 2...
d6 {[%clk 0:02:59.5]} 3. d4 {[%clk 0:02:59.1]} 3... exd4 {[%clk 0:03:00.4]} 4.
Nxd4 {[%clk 0:02:57.4]} 4... Nf6 {[%clk 0:03:00.9]} 5. Nc3 {[%clk 0:02:57.6]}
5... g6 {[%clk 0:03:01.8]} 6. Be2 {[%clk 0:02:58.1]} 6... Bg7 {[%clk 0:03:02.1]}
7. Be3 {[%clk 0:02:58.6]} 7... O-O {[%clk 0:03:03]} 8. Qd2 {[%clk 0:02:58.6]}
8... Re8 {[%clk 0:03:03.3]} 9. f3 {[%clk 0:02:57.9]} 9... d5 {[%clk 0:03:04.2]}
10. exd5 {[%clk 0:02:53.3]} 10... Nxd5 {[%clk 0:03:05.1]} 11. Nxd5 {[%clk
0:02:46.7]} 11... Qxd5 {[%clk 0:03:06]} 12. O-O-O {[%clk 0:02:19.8]} 12... Qxa2
{[%clk 0:03:05.8]} 13. Qc3 {[%clk 0:01:57.1]} 13... Nd7 {[%clk 0:01:40]} 14. Bc4
{[%clk 0:01:50.4]} 14... Qa4 {[%clk 0:01:15.4]} 15. Bb5 {[%clk 0:01:46.9]} 15...
Qa2 {[%clk 0:00:36.8]} 16. Bc4 {[%clk 0:01:34.1]} 16... Rxe3 {[%clk 0:00:16.8]}
17. Qxe3 {[%clk 0:01:31.3]} 17... Qa1+ {[%clk 0:00:16.8]} 18. Kd2 {[%clk
0:01:30.1]} 18... Qa5+ {[%clk 0:00:11.4]} 19. c3 {[%clk 0:01:27.1]} 19... Ne5
{[%clk 0:00:10.6]} 20. Bb3 {[%clk 0:01:18]} 20... Qb6 {[%clk 0:00:09.7]} 21. f4
{[%clk 0:01:16.5]} 21... Qxb3 {[%clk 0:00:02.9]} 22. Nxb3 {[%clk 0:01:05.3]}
22... Nc4+ {[%clk 0:00:03.4]} 23. Ke2 {[%clk 0:01:05.7]} 23... Bg4+ {[%clk
0:00:01.7]} 24. Kf2 {[%clk 0:01:05]} 24... Nxe3 {[%clk 0:00:02]} 25. Kxe3 {[%clk
0:01:04.9]} 25... Bxd1 {[%clk 0:00:02.7]} 26. Rxd1 {[%clk 0:01:05.3]} 26... Re8+
{[%clk 0:00:03.6]} 27. Kf3 {[%clk 0:01:03.4]} 27... Re6 {[%clk 0:00:03.7]} 28.
Rd7 {[%clk 0:00:59.5]} 28... Rb6 {[%clk 0:00:03.3]} 29. Nc5 {[%clk 0:00:56.1]}
29... Rxb2 {[%clk 0:00:03.6]} 30. Rxc7 {[%clk 0:00:54.3]} 30... Bxc3 {[%clk
0:00:03.4]} 31. Nxb7 {[%clk 0:00:50.1]} 31... a6 {[%clk 0:00:01.9]} 32. Nd6
{[%clk 0:00:46.5]} 32... Ba5 {[%clk 0:00:01.5]} 33. Rc8+ {[%clk 0:00:44]} 33...
Kg7 {[%clk 0:00:01.5]} 34. Ne8+ {[%clk 0:00:44.5]} 34... Kh6 {[%clk 0:00:01.4]}
35. Nf6 {[%clk 0:00:41.7]} 35... Rb3+ {[%clk 0:00:01.8]} 36. Kg4 {[%clk
0:00:40.7]} 36... Bc3 {[%clk 0:00:02.3]} 37. Ne4 {[%clk 0:00:33.4]} 37... f5+
{[%clk 0:00:02.6]} 38. Kh4 {[%clk 0:00:30.6]} 38... fxe4 {[%clk 0:00:03.1]} 39.
g4 {[%clk 0:00:29.9]} 39... Bf6+ {[%clk 0:00:03.1]} 40. g5+ {[%clk 0:00:29.9]}
40... Kg7 {[%clk 0:00:03.1]} 41. Rc7+ {[%clk 0:00:28.4]} 41... Kf8 {[%clk
0:00:03.5]} 42. gxf6 {[%clk 0:00:28.5]} 42... Rb5 {[%clk 0:00:03.7]} 43. Rxh7
{[%clk 0:00:23.7]} 43... Rh5+ {[%clk 0:00:03.9]} 44. Rxh5 {[%clk 0:00:22.3]}
44... gxh5 {[%clk 0:00:04.8]} 45. Kg3 {[%clk 0:00:22.9]} 45... a5 {[%clk
0:00:04.8]} 46. Kf2 {[%clk 0:00:23.5]} 46... a4 {[%clk 0:00:05.5]} 47. Ke3
{[%clk 0:00:24.1]} 47... a3 {[%clk 0:00:06.1]} 48. Kxe4 {[%clk 0:00:24.8]} 48...
a2 {[%clk 0:00:06.9]} 49. Kf5 {[%clk 0:00:25.4]} 49... a1=Q {[%clk 0:00:07.8]}
50. Kg5 {[%clk 0:00:25.8]} 50... Kf7 {[%clk 0:00:07.3]} 51. Kxh5 {[%clk
0:00:25.7]} 51... Kxf6 {[%clk 0:00:07.9]} 52. Kg4 {[%clk 0:00:25.9]} 52... Qg1+
{[%clk 0:00:07.6]} 0-1

[Event "Early-Titled-Tuesday-Blitz-April-23-2024"]
[Site "Chess.com"]
[Date "2024.04.23"]
[Round "8"]
[White "Eagle_2019"]
[Black "Thunderbolt135"]
[Result "0-1"]
[WhiteElo "2844"]
[BlackElo "2694"]
[TimeControl "180+1"]
[EndTime "9:32:35 PDT"]
[Termination "Thunderbolt135 won on time"]

1. d4 {[%clk 0:03:00.9]} 1... Nf6 {[%clk 0:03:00]} 2. c4 {[%clk 0:02:58]} 2...
e6 {[%clk 0:03:00.2]} 3. Nf3 {[%clk 0:02:50.7]} 3... d5 {[%clk 0:03:00.2]} 4.
Nc3 {[%clk 0:02:45.1]} 4... c6 {[%clk 0:03:00.4]} 5. e3 {[%clk 0:02:44.5]} 5...
Bd6 {[%clk 0:02:55]} 6. Bd3 {[%clk 0:02:36.9]} 6... O-O {[%clk 0:02:55.4]} 7. e4
{[%clk 0:02:35.9]} 7... dxe4 {[%clk 0:02:47.6]} 8. Nxe4 {[%clk 0:02:35.4]} 8...
Nxe4 {[%clk 0:02:44.7]} 9. Bxe4 {[%clk 0:02:36.3]} 9... Nd7 {[%clk 0:02:45.1]}
10. O-O {[%clk 0:02:35.6]} 10... h6 {[%clk 0:02:25.6]} 11. b3 {[%clk 0:02:28.5]}
11... e5 {[%clk 0:02:15.3]} 12. Bb2 {[%clk 0:02:26.5]} 12... f5 {[%clk
0:02:08.6]} 13. Bc2 {[%clk 0:02:14.8]} 13... e4 {[%clk 0:02:08.9]} 14. Ne5
{[%clk 0:02:14.8]} 14... Nxe5 {[%clk 0:01:58.4]} 15. dxe5 {[%clk 0:02:14.1]}
15... Bc5 {[%clk 0:01:59]} 16. Qe1 {[%clk 0:01:57.2]} 16... a5 {[%clk
0:01:50.2]} 17. Rd1 {[%clk 0:01:53.1]} 17... Qe7 {[%clk 0:01:49.2]} 18. Kh1
{[%clk 0:01:47.9]} 18... Be6 {[%clk 0:01:47.6]} 19. f3 {[%clk 0:01:44.4]} 19...
exf3 {[%clk 0:01:26.6]} 20. Rxf3 {[%clk 0:01:42.5]} 20... b6 {[%clk 0:01:27.1]}
21. Qf1 {[%clk 0:01:29.3]} 21... Rad8 {[%clk 0:01:08]} 22. Rfd3 {[%clk
0:01:13.4]} 22... Rxd3 {[%clk 0:01:05.5]} 23. Qxd3 {[%clk 0:01:10]} 23... Qh4
{[%clk 0:00:59.3]} 24. Qf3 {[%clk 0:01:06.4]} 24... Rd8 {[%clk 0:00:51.5]} 25.
Rxd8+ {[%clk 0:00:42.2]} 25... Qxd8 {[%clk 0:00:52.4]} 26. Qxc6 {[%clk
0:00:42.3]} 26... Kf7 {[%clk 0:00:53.1]} 27. g4 {[%clk 0:00:16.3]} 27... Qd2
{[%clk 0:00:45.1]} 28. Bxf5 {[%clk 0:00:06.6]} 28... Bxf5 {[%clk 0:00:16.5]} 29.
gxf5 {[%clk 0:00:05.4]} 29... Qe1+ {[%clk 0:00:16.8]} 30. Kg2 {[%clk 0:00:05.2]}
30... Qf2+ {[%clk 0:00:15.1]} 31. Kh3 {[%clk 0:00:04.8]} 31... Qxf5+ {[%clk
0:00:15.8]} 32. Kg2 {[%clk 0:00:03]} 32... Qf2+ {[%clk 0:00:15.8]} 33. Kh3
{[%clk 0:00:03.4]} 33... Qxb2 {[%clk 0:00:13.6]} 34. Qd5+ {[%clk 0:00:03.4]}
34... Ke7 {[%clk 0:00:12.8]} 35. Qb7+ {[%clk 0:00:03.3]} 35... Ke6 {[%clk
0:00:13.2]} 36. Qd5+ {[%clk 0:00:03.3]} 36... Kf5 {[%clk 0:00:13.7]} 37. Qf7+
{[%clk 0:00:02.7]} 37... Ke4 {[%clk 0:00:10.6]} 38. Qg6+ {[%clk 0:00:02.7]}
38... Ke3 {[%clk 0:00:08.4]} 39. Qg3+ {[%clk 0:00:02.2]} 39... Kd4 {[%clk
0:00:05.5]} 40. Qg4+ {[%clk 0:00:01.4]} 40... Kc3 {[%clk 0:00:05.7]} 41. Qxg7
{[%clk 0:00:01.7]} 41... Kb4 {[%clk 0:00:04.9]} 0-1

[Event "Early-Titled-Tuesday-Blitz-April-23-2024"]
[Site "Chess.com"]
[Date "2024.04.23"]
[Round "8"]
[White "ProtectiveCarrot"]
[Black "hongnhung1234"]
[Result "1-0"]
[WhiteElo "2377"]
[BlackElo "2539"]
[TimeControl "180+1"]
[EndTime "9:32:35 PDT"]
[Termination "ProtectiveCarrot won by checkmate"]

1. Nf3 {[%clk 0:03:00.9]} 1... Nf6 {[%clk 0:02:58.8]} 2. g3 {[%clk 0:02:58.6]}
2... g6 {[%clk 0:02:58.9]} 3. Bg2 {[%clk 0:02:55]} 3... Bg7 {[%clk 0:02:59.6]}
4. O-O {[%clk 0:02:55.9]} 4... O-O {[%clk 0:02:59.4]} 5. d4 {[%clk 0:02:56.5]}
5... c5 {[%clk 0:02:59.5]} 6. c4 {[%clk 0:02:50.9]} 6... cxd4 {[%clk 0:02:56.7]}
7. Nxd4 {[%clk 0:02:51.8]} 7... Nc6 {[%clk 0:02:56.8]} 8. Nc3 {[%clk 0:02:51.7]}
8... d6 {[%clk 0:02:56.3]} 9. Nxc6 {[%clk 0:02:50.6]} 9... bxc6 {[%clk
0:02:57.2]} 10. Bxc6 {[%clk 0:02:51.2]} 10... Rb8 {[%clk 0:02:56.4]} 11. Bg2
{[%clk 0:02:40.4]} 11... Qa5 {[%clk 0:02:54.7]} 12. Rb1 {[%clk 0:02:31.5]} 12...
Ba6 {[%clk 0:02:43.5]} 13. Qd3 {[%clk 0:02:20.7]} 13... Ng4 {[%clk 0:02:34.9]}
14. Nd5 {[%clk 0:02:03.7]} 14... Qd8 {[%clk 0:02:04.4]} 15. b3 {[%clk 0:01:49]}
15... e6 {[%clk 0:02:00.5]} 16. Ne3 {[%clk 0:01:47.9]} 16... Ne5 {[%clk
0:01:58.7]} 17. Qc2 {[%clk 0:01:44.8]} 17... Bb7 {[%clk 0:01:53.5]} 18. Bb2
{[%clk 0:01:40.2]} 18... Bxg2 {[%clk 0:01:50.2]} 19. Nxg2 {[%clk 0:01:41.1]}
19... Qa5 {[%clk 0:01:50.1]} 20. Bc3 {[%clk 0:01:37.1]} 20... Qc5 {[%clk
0:01:46.4]} 21. Rfd1 {[%clk 0:01:35.9]} 21... Rfd8 {[%clk 0:01:43.8]} 22. Nf4
{[%clk 0:01:35.5]} 22... Rbc8 {[%clk 0:01:42.6]} 23. Nd3 {[%clk 0:01:34.5]}
23... Nxd3 {[%clk 0:01:41.1]} 24. Rxd3 {[%clk 0:01:29.9]} 24... d5 {[%clk
0:01:28.5]} 25. Bxg7 {[%clk 0:01:26.8]} 25... Kxg7 {[%clk 0:01:29.4]} 26. Qb2+
{[%clk 0:01:24.8]} 26... Kg8 {[%clk 0:01:29.6]} 27. cxd5 {[%clk 0:01:03.9]}
27... Rxd5 {[%clk 0:01:30.2]} 28. Rxd5 {[%clk 0:01:04.2]} 28... Qxd5 {[%clk
0:01:30]} 29. Rc1 {[%clk 0:01:04]} 29... Rd8 {[%clk 0:01:27.8]} 30. e3 {[%clk
0:00:49.2]} 30... h5 {[%clk 0:01:25.6]} 31. h4 {[%clk 0:00:49.2]} 31... Qf3
{[%clk 0:01:20.1]} 32. Qc2 {[%clk 0:00:34.6]} 32... a6 {[%clk 0:01:16.9]} 33. b4
{[%clk 0:00:34.1]} 33... Rb8 {[%clk 0:01:05.3]} 34. Qc4 {[%clk 0:00:28.1]} 34...
a5 {[%clk 0:00:38.7]} 35. bxa5 {[%clk 0:00:25.5]} 35... Rb2 {[%clk 0:00:38.8]}
36. Rf1 {[%clk 0:00:20.6]} 36... Qf5 {[%clk 0:00:34.1]} 37. a6 {[%clk
0:00:18.9]} 37... Qa5 {[%clk 0:00:34.5]} 38. Rd1 {[%clk 0:00:16.6]} 38... Qxa2
{[%clk 0:00:28]} 39. Rd8+ {[%clk 0:00:14.3]} 39... Kh7 {[%clk 0:00:28.2]} 40.
Qd4 {[%clk 0:00:14.1]} 40... Rb1+ {[%clk 0:00:14]} 41. Kg2 {[%clk 0:00:14.3]}
41... g5 {[%clk 0:00:04.7]} 42. Qh8+ {[%clk 0:00:11.2]} 42... Kg6 {[%clk
0:00:05.1]} 43. Rg8+ {[%clk 0:00:10.4]} 43... Kf5 {[%clk 0:00:05.5]} 44. Rxg5+
{[%clk 0:00:11]} 44... Ke4 {[%clk 0:00:05.2]} 45. Qd4# {[%clk 0:00:11.2]} 1-0